bitfinex-derivatives/quotes_ETHF0:USTF0_20251001
["timestamp","ask_amount","ask_price","bid_price","bid_amount"]
[1759322945561,0.7528,4292.2,4292.1,0.24083287]
[1759322945562,3.9606,4292.2,4292.1,0.24083287]
[1759322945767,3.9606,4292.2,4292.1,41.04083287]
[1759322948868,4.45854944,4292.2,4292.1,0.24083287]
[1759322949967,3.9606,4292.2,4292.1,0.24083287]
[1759322950167,3.9606,4292.2,4292.1,0.45853287]
[1759322950471,3.9606,4292.2,4292.1,0.68343287]
[1759322950862,3.9606,4292.2,4292.1,0.45853287]
[1759322951070,3.9606,4292.2,4292.1,0.24083287]
[1759322952271,4.4584831,4292.2,4292.1,0.24083287]
[1759322952569,3.9606,4292.2,4292.1,0.45853287]
[1759322953570,3.9606,4292.2,4292.1,0.24083287]
[1759322953865,0.129,4291.0,4290.9,0.65728]
[1759322954164,0.129,4291.0,4290.9,1.09988]
[1759322954365,3.2078,4291.2,4291.1,0.63696]
[1759322954565,3.2078,4291.2,4291.1,1.06976]
[1759322954868,3.20950076,4291.2,4291.1,41.87274452]
[1759322955266,3.52810076,4291.2,4291.1,41.87274452]
[1759322955458,0.32030076,4291.2,4291.1,41.87274452]
[1759322956463,0.32030076,4291.2,4290.3,0.1864]
[1759322956464,0.7528,4290.4,4290.3,0.1864]
[1759322956665,0.7528,4290.4,4290.3,0.4041]
[1759322956866,0.7528,4290.4,4290.3,0.629]
[1759322957571,0.7528,4290.4,4290.3,0.63178454]
[1759322957968,0.5292,4290.4,4290.3,0.63178454]
[1759322958173,0.3186,4290.4,4290.3,0.83968454]
[1759322958675,0.3186,4290.4,4290.3,41.63968454]
[1759322958873,0.3186,4290.4,4290.3,41.45328454]
[1759322959175,0.3186,4290.4,4290.3,41.24538454]
[1759322961071,0.3186,4290.4,4290.3,41.48338454]
[1759322961280,0.3186,4290.4,4290.3,41.24538454]
[1759322961471,0.3186,4290.4,4290.3,41.48338454]
[1759322966182,0.3186,4290.4,4290.3,41.90271454]
[1759322966480,0.3186,4290.4,4290.3,42.11111454]
[1759322966982,0.3186,4290.4,4290.3,41.48338454]
[1759322967374,0.3186,4290.4,4290.3,41.90271454]
[1759322967775,0.73792,4290.4,4290.3,41.24538454]
[1759322968085,0.73792,4290.4,4290.3,41.48338454]
[1759322968275,0.3186,4290.4,4290.3,41.24538454]
[1759322968591,0.3186,4290.4,4290.3,41.90271454]
[1759322968886,0.3186,4290.4,4290.3,41.48338454]
[1759322969284,0.3186,4290.4,4290.3,41.90271454]
[1759322970383,0.3186,4290.4,4290.3,41.48338454]
[1759322970574,0.3186,4290.4,4290.3,42.11111454]
[1759322972281,0.3228,4290.7,4290.6,0.6432]
[1759322972486,0.96719,4290.7,4290.6,0.6728]
[1759322972782,0.3228,4290.7,4290.6,1.30051]
[1759322973978,0.5479,4290.7,4290.6,1.30051]
[1759322975193,0.774,4290.7,4290.6,0.6728]
[1759322975883,1.1933,4290.7,4290.6,0.2232]
[1759322976080,0.9003,4290.5,4290.4,0.2232]
[1759322976281,0.9003,4290.5,4290.3,41.22211454]
[1759322976282,0.41933,4290.4,4290.3,40.80278454]
[1759322976482,1.19333,4290.4,4290.3,0.24078454]
[1759322977590,1.19333,4290.4,4290.3,0.46398454]
[1759322978890,0.774,4290.4,4290.3,0.88330454]
[1759322979090,1.19331,4290.4,4290.3,0.46398454]
[1759322979290,1.19331,4290.4,4290.3,0.67558454]
[1759322979586,1.19331,4290.4,4290.3,1.09490454]
[1759322980178,0.5479,4290.4,4290.3,1.30330454]
[1759322980382,0.3228,4290.4,4290.3,1.30330454]
[1759322981483,4.17498,4290.8,4290.7,0.4348]
[1759322981682,4.17498,4290.8,4290.7,0.6728]
[1759322981877,4.40108,4290.8,4290.7,0.6728]
[1759322982884,4.40108,4290.8,4290.7,1.09209]
[1759322983292,4.47796235,4290.8,4290.7,1.09209]
[1759322983489,3.5306,4290.8,4290.7,1.30049]
[1759322983684,1.19328,4290.8,4290.7,0.6728]
[1759322983889,0.774,4290.8,4290.7,0.2232]
[1759322984084,3.9818,4290.8,4290.7,0.4612]
[1759322984283,3.9818,4290.8,4290.7,0.88049]
[1759322984485,3.9818,4290.8,4290.7,1.09209]
[1759322985084,3.9818,4290.8,4290.7,1.30049]
[1759322985294,3.2078,4290.8,4290.7,1.30049]
[1759322986095,3.5306,4290.8,4290.7,1.30049]
[1759322986482,3.2078,4290.8,4290.7,1.30049]
[1759322986890,0.00170076,4291.2,4291.1,1.06245]
[1759322987093,0.00170076,4291.2,4291.1,1.30045]
[1759322987293,0.00170076,4291.2,4291.1,42.10045]
[1759322987694,3.3368,4292.0,4291.1,42.10045]
[1759322987695,3.6596,4292.0,4291.9,1.06238]
[1759322987895,3.6596,4292.0,4291.9,1.30038]
[1759322988196,3.8847,4292.0,4291.9,1.30038]
[1759322988390,3.8847,4292.0,4291.9,1.09198]
[1759322988695,3.8876289,4292.0,4291.9,1.09198]
[1759322988896,3.8876289,4292.0,4291.9,41.89198]
[1759322989091,3.8876289,4292.0,4291.9,42.10038]
[1759322989291,0.6798289,4292.0,4291.9,42.10038]
[1759322990593,0.0029289,4292.0,4291.9,42.10038]
[1759322991197,0.0029289,4292.0,4291.9,47.10038]
[1759322991891,0.0029289,4292.0,4291.9,48.35608522]
[1759322992294,0.0029289,4292.0,4291.9,47.10038]
[1759322992794,0.3257289,4292.0,4291.9,47.10038]
[1759322993696,0.0029289,4292.0,4291.9,47.10038]
[1759322997103,0.3169289,4292.0,4291.9,47.10038]
[1759322997300,0.3169289,4292.0,4291.9,47.09938]
[1759322998801,0.0029289,4292.0,4291.9,47.09938]
[1759322999703,0.0029289,4292.0,4291.9,42.09938]
[1759322999910,2.9570278,4292.6,4292.5,1.05891]
[1759323000109,3.2710278,4292.6,4292.5,1.29591]
[1759323000406,3.4934278,4292.6,4292.5,1.29591]
[1759323000909,3.49643249,4292.6,4292.5,1.08811]
[1759323001104,3.49643249,4292.6,4292.5,1.29591]
[1759323001604,2.96003249,4292.6,4292.5,1.29591]
[1759323001805,2.96003249,4292.6,4292.5,1.36301]
[1759323002404,2.96003249,4292.6,4292.5,42.16301]
[1759323002909,0.00300469,4292.6,4292.5,42.16301]
[1759323003110,0.31700469,4292.6,4292.5,78.44091]
[1759323004801,0.4378,4293.2,4293.1,0.2117]
[1759323005005,0.4378,4293.2,4293.1,0.237]
[1759323005415,0.7518,4293.2,4293.1,0.237]
[1759323005816,0.75438809,4293.2,4293.1,1.08805]
[1759323006704,0.00258809,4293.2,4293.1,1.29585]
[1759323007310,0.00258809,4293.2,4293.1,42.28649736]
[1759323007613,0.00258809,4293.2,4293.1,47.28649736]
[1759323008417,0.314,4293.8,4293.7,1.0588]
[1759323008619,0.7518,4293.8,4293.7,1.088]
[1759323008810,0.7518,4293.8,4293.7,0.669]
[1759323009011,0.7518,4293.8,4293.7,41.469]
[1759323009312,0.7518,4293.8,4293.7,41.88799]
[1759323009506,0.75374434,4293.8,4293.7,41.89090974]
[1759323010816,0.75374434,4293.8,4293.7,42.09870974]
[1759323011812,0.75374434,4293.8,4293.7,41.89090974]
[1759323012913,0.31594434,4293.8,4293.7,42.09870974]
[1759323013709,0.31594434,4293.8,4293.7,41.89090974]
[1759323015926,0.31594434,4293.8,4293.7,42.09870974]
[1759323018522,0.31594434,4293.8,4293.7,41.67971974]
[1759323019024,0.31594434,4293.8,4293.7,42.09871974]
[1759323023122,0.31594434,4293.8,4293.7,41.65390974]
[1759323023317,0.31594434,4293.8,4293.7,41.89090974]
[1759323023827,0.31594434,4293.8,4293.7,42.09870974]
[1759323026515,0.31594434,4293.8,4293.7,41.67971974]
[1759323026927,0.31594434,4293.8,4293.7,42.09871974]
[1759323027829,0.31594434,4293.8,4293.7,41.89091974]
[1759323028425,0.31594434,4293.8,4293.7,42.09871974]
[1759323030733,0.31594434,4293.8,4293.7,41.65391974]
[1759323031029,0.31594434,4293.8,4293.7,41.89091974]
[1759323031233,0.31594434,4293.8,4293.7,41.65391974]
[1759323031530,6.16202434,4293.8,4293.7,0.00291974]
[1759323031723,6.65421025,4293.8,4293.7,0.23991974]
[1759323033433,9.86201025,4293.8,4293.7,0.00291974]
[1759323033634,9.86201025,4293.8,4293.7,0.23991974]
[1759323034135,9.86201025,4293.8,4293.7,0.00291974]
[1759323034322,1.17346,4293.1,4293.0,0.41907]
[1759323034524,0.7544,4293.1,4293.0,0.65607]
[1759323034731,0.7544,4293.1,4293.0,41.67167]
[1759323034932,0.7544,4293.1,4293.0,41.87947]
[1759323034933,0.5486,4293.1,4293.0,41.87947]
[1759323035127,0.96766,4293.1,4293.0,41.4604]
[1759323035330,0.96766,4293.1,4293.0,41.25534448]
[1759323035737,0.96766,4293.1,4293.0,41.01834448]
[1759323035934,0.96766,4293.1,4293.0,41.25534448]
[1759323039241,6.17346,4293.1,4293.0,0.23974448]
[1759323039434,1.17346,4293.1,4293.0,0.23974448]
[1759323042338,6.17346,4293.1,4293.0,0.00274448]
[1759323042641,6.66526819,4293.1,4293.0,0.00274448]
[1759323042839,0.84625,4292.1,4292.0,0.63475]
[1759323043036,1.17355,4292.1,4292.0,0.87175]
[1759323043334,1.17355,4292.1,4292.0,0.4526]
[1759323043742,1.17355,4292.1,4292.0,0.23967017]
[1759323043941,0.7544,4292.1,4292.0,0.87443017]
[1759323044142,0.7544,4292.1,4292.0,1.09533017]
[1759323044535,0.5486,4292.1,4292.0,1.30313017]
[1759323044937,0.5486,4292.1,4292.0,0.67617017]
[1759323044938,0.7544,4292.1,4292.0,0.67617017]
[1759323045134,1.17356,4292.1,4292.0,0.00267017]
[1759323045447,6.17356,4292.1,4292.0,0.23967017]
[1759323046044,6.17356,4292.1,4292.0,0.00267017]
[1759323046347,6.17356,4292.1,4292.0,0.23967017]
[1759323047645,0.54947,4292.0,4291.9,0.01326]
[1759323047843,0.54947,4292.0,4291.9,0.25026]
[1759323047844,4.51167,4292.0,4291.9,0.25026]
[1759323048143,4.30587,4292.0,4291.9,0.89456]
[1759323048741,4.30587,4292.0,4291.9,0.89739325]
[1759323049641,4.30587,4292.0,4291.9,0.68959325]
[1759323049849,4.51167,4292.0,4291.9,0.68959325]
[1759323052551,4.0925,4292.0,4291.9,0.68959325]
[1759323052743,4.51167,4292.0,4291.9,0.68959325]
[1759323053552,0.6789,4292.0,4291.9,0.89749325]
[1759323053851,1.09807,4292.0,4291.9,0.89749325]
[1759323054151,1.09807,4292.0,4291.9,0.68959325]
[1759323054349,1.30227,4292.0,4291.9,0.67633325]
[1759323056052,1.30227,4292.0,4291.9,0.23983325]
[1759323056249,1.30227,4292.0,4291.9,0.45423325]
[1759323057244,0.8831,4292.0,4291.9,0.45423325]
[1759323057449,1.30227,4292.0,4291.9,0.45423325]
[1759323059254,4.51007,4292.0,4291.9,0.23983325]
[1759323060254,4.0909,4292.0,4291.9,0.65901325]
[1759323060648,4.51007,4292.0,4291.9,0.23983325]
[1759323061957,4.0909,4292.0,4291.9,0.65901325]
[1759323062162,4.51007,4292.0,4291.9,0.23983325]
[1759323063859,4.0909,4292.0,4291.9,0.65901325]
[1759323064058,0.8831,4292.0,4291.9,0.65901325]
[1759323065669,1.30227,4292.0,4291.9,0.23983325]
[1759323066367,4.51007,4292.0,4291.9,0.23983325]
[1759323067265,4.51007,4292.0,4291.9,0.00283325]
[1759323067764,4.51007,4292.0,4291.9,0.23983325]
[1759323068870,4.51007,4292.0,4291.9,0.00283325]
[1759323069066,4.51007,4292.0,4291.9,0.23983325]
[1759323069468,4.51007,4292.0,4291.9,0.00283325]
[1759323069669,5.00392463,4292.0,4291.9,0.00283325]
[1759323070076,5.00392463,4292.0,4291.9,0.23983325]
[1759323071776,5.00392463,4292.0,4291.9,0.87341325]
[1759323072069,4.0909,4292.0,4291.9,0.87341325]
[1759323072275,5.00438498,4292.0,4291.9,0.87341325]
[1759323072577,5.00438498,4292.0,4291.9,0.45423325]
[1759323072872,5.00438498,4292.0,4291.9,0.23983325]
[1759323073082,5.00438498,4292.0,4291.9,0.65901325]
[1759323073373,5.00438498,4292.0,4291.9,0.23983325]
[1759323073778,4.58521498,4292.0,4291.9,0.65901325]
[1759323074668,5.00438498,4292.0,4291.9,0.65901325]
[1759323074868,5.00438498,4292.0,4291.9,0.23983325]
[1759323075676,1.79658498,4292.0,4291.9,0.23983325]
[1759323077977,1.37741498,4292.0,4291.9,0.23983325]
[1759323078178,1.79658498,4292.0,4291.9,0.23983325]
[1759323078378,1.37741498,4292.0,4291.9,0.23983325]
[1759323078676,1.79658498,4292.0,4291.9,0.23983325]
[1759323079979,5.00438498,4292.0,4291.9,0.23983325]
[1759323080377,5.00438498,4292.0,4291.9,0.00283325]
[1759323080672,5.00438498,4292.0,4291.9,0.23983325]
[1759323084184,4.58521498,4292.0,4291.9,0.65901325]
[1759323084375,5.00438498,4292.0,4291.9,0.65901325]
[1759323084875,5.00438498,4292.0,4291.9,0.23983325]
[1759323086481,4.58521498,4292.0,4291.9,0.23983325]
[1759323086683,4.58521498,4292.0,4291.9,0.65901325]
[1759323087084,5.00438498,4292.0,4291.9,0.65901325]
[1759323087385,5.00438498,4292.0,4291.9,0.23983325]
[1759323090679,10.00438498,4292.0,4291.9,0.23983325]
[1759323095595,5.00438498,4292.0,4291.9,0.23983325]
[1759323096190,5.00438498,4292.0,4291.9,0.45493325]
[1759323096489,5.00438498,4292.0,4291.9,0.87411325]
[1759323096689,5.00438498,4292.0,4291.9,0.45493325]
[1759323097387,5.00438498,4292.0,4291.9,0.87411325]
[1759323097683,5.00438498,4292.0,4291.9,0.45493325]
[1759323099993,5.00438498,4292.0,4291.9,0.23983325]
[1759323106097,4.58521498,4292.0,4291.9,0.23983325]
[1759323106293,5.00438498,4292.0,4291.9,0.23983325]
[1759323110999,5.00437498,4292.0,4291.9,0.23983325]
[1759323111199,4.58521498,4292.0,4291.9,0.45493325]
[1759323111593,4.58521498,4292.0,4291.9,1.08880325]
[1759323113393,4.58521498,4292.0,4291.9,0.00283325]
[1759323113596,5.00437498,4292.0,4291.9,0.00283325]
[1759323113899,0.41941,4289.5,4289.4,0.92630703]
[1759323114092,8.93856174,4289.5,4288.5,0.1347]
[1759323114289,3.2078,4289.1,4289.0,0.1347]
[1759323114491,4.36401174,4289.1,4289.0,0.36505429]
[1759323114692,4.36699607,4289.1,4289.0,0.36672083]
[1759323116205,4.36699607,4289.1,4286.7,3.2078]
[1759323116206,19.36754607,4289.1,4286.7,3.2078]
[1759323116503,0.4195,4288.6,4288.5,0.1347]
[1759323116705,0.91326174,4288.6,4288.5,0.1347]
[1759323117404,0.91326174,4288.6,4288.5,0.13720753]
[1759323118300,0.91326174,4288.6,4288.5,0.44880753]
[1759323119800,0.41954,4288.1,4288.0,0.4463]
[1759323120006,4.12110174,4288.1,4288.0,0.4463]
[1759323120203,4.12110174,4288.1,4288.0,0.67]
[1759323120410,0.49376174,4288.1,4288.0,2.14355006]
[1759323120600,0.91330174,4288.1,4288.0,2.14355006]
[1759323120799,0.91330174,4288.1,4288.0,2.14635015]
[1759323121101,0.91330174,4288.1,4288.0,1.70635015]
[1759323121901,0.91330174,4288.1,4288.0,0.44910009]
[1759323122598,0.91330174,4288.1,4288.0,0.13750009]
[1759323122798,0.91330174,4288.1,4287.0,0.1347]
[1759323122799,1.04889,4288.0,4287.0,0.3584]
[1759323123000,3.2078,4287.2,4287.1,0.44]
[1759323123203,3.70156174,4287.2,4287.1,0.44]
[1759323123402,3.70156174,4287.2,4287.1,2.00885006]
[1759323123808,3.70156174,4287.2,4287.1,2.01135878]
[1759323124009,3.70156174,4287.2,4287.1,1.57135878]
[1759323124209,3.70156174,4287.2,4287.1,1.79505878]
[1759323125209,3.70156174,4287.2,4287.1,1.57135878]
[1759323126097,3.70156174,4287.2,4287.1,0.31410872]
[1759323126405,0.41969,4286.6,4286.5,0.3584]
[1759323126604,0.91345174,4286.6,4286.5,0.3584]
[1759323126804,0.91345174,4286.6,4286.5,9.95705323]
[1759323127005,0.91345174,4286.6,4286.5,10.17335323]
[1759323127401,0.91345174,4286.6,4286.5,10.17545793]
[1759323128502,0.91345174,4286.6,4286.5,10.48705793]
[1759323129312,0.91345174,4286.6,4286.5,10.73205793]
[1759323129512,0.91345174,4286.6,4286.5,10.48705793]
[1759323129707,0.91345174,4286.6,4286.5,10.73205793]
[1759323130008,0.91345174,4286.6,4286.5,0.4484047]
[1759323130198,0.91345174,4286.6,4286.5,0.6721047]
[1759323130609,0.91345174,4286.6,4286.5,0.4484047]
[1759323132002,0.91345174,4286.6,4286.5,0.6721047]
[1759323132203,0.91345174,4286.6,4286.5,0.8884047]
[1759323132505,0.63366,4285.9,4285.8,0.1866]
[1759323132802,4.54392174,4285.9,4285.8,0.6266]
[1759323133010,4.54392174,4285.9,4285.8,1.69725006]
[1759323133313,4.77242174,4285.9,4285.8,1.72595006]
[1759323133503,4.54565266,4285.9,4285.8,1.94526546]
[1759323133703,4.12305266,4285.9,4285.8,1.94526546]
[1759323134203,4.54565266,4285.9,4285.8,1.94526546]
[1759323134606,4.77415266,4285.9,4285.8,1.79556546]
[1759323134798,4.54565266,4285.9,4285.8,2.04056546]
[1759323135003,4.33695266,4285.9,4285.8,2.25686546]
[1759323135502,4.54565266,4285.9,4285.8,2.04056546]
[1759323135703,4.77415266,4285.9,4285.8,0.0030154]
[1759323135900,4.77415266,4285.9,4285.8,1.79556546]
[1759323136310,6.4213577,4285.9,4285.8,0.2480154]
[1759323136508,4.77415266,4285.9,4285.8,0.0030154]
[1759323136709,4.77415266,4285.9,4285.8,0.2480154]
[1759323136914,4.77415266,4285.9,4285.8,0.0030154]
[1759323137406,4.77415266,4285.9,4285.8,0.2480154]
[1759323137805,0.84243,4285.2,4285.1,1.1832]
[1759323138005,0.91359174,4285.2,4285.1,1.1832]
[1759323138210,0.91359174,4285.2,4285.1,2.44045006]
[1759323138706,0.91359174,4285.2,4285.1,2.4428106]
[1759323138906,0.91359174,4285.2,4285.1,2.2562106]
[1759323139609,0.49376174,4285.2,4285.1,2.2562106]
[1759323140017,0.49376174,4285.2,4285.1,7.2562106]
[1759323140513,0.41978,4285.8,4285.7,0.7611]
[1759323140814,0.41978,4285.8,4285.7,1.0061]
[1759323141314,0.62408,4285.8,4285.7,1.0061]
[1759323142403,2.26959988,4285.8,4285.7,1.0061]
[1759323142606,0.62408,4285.8,4285.7,1.0061]
[1759323142812,0.00173092,4285.9,4285.8,0.7611]
[1759323143208,0.3353,4285.8,4285.7,0.66479]
[1759323143408,0.3353,4285.8,4285.7,9.42619317]
[1759323143615,1.65991072,4285.9,4285.7,9.42619317]
[1759323143908,2.21431072,4285.9,4285.8,8.76860317]
[1759323144110,1.65991072,4285.9,4285.8,9.43338317]
[1759323144314,1.65991072,4285.9,4285.8,1.09198]
[1759323144513,0.00173092,4285.9,4285.8,1.09198]
[1759323145208,0.00173092,4285.9,4285.8,6.42938]
[1759323145409,1.95438542,4285.9,4285.0,0.1866]
[1759323145610,0.3301,4283.9,4283.0,3.2078]
[1759323145803,0.1256,4284.5,4284.3,0.41992]
[1759323146008,0.1256,4284.5,4284.4,8.59140317]
[1759323146211,3.5379,4284.9,4284.4,8.34140317]
[1759323146508,0.7687,4284.6,4284.5,8.59140317]
[1759323146915,0.3301,4284.6,4284.5,8.60648704]
[1759323147107,0.3301,4284.8,4284.5,8.60648704]
[1759323147309,0.1256,4285.0,4284.9,0.41986]
[1759323147507,0.3301,4285.3,4284.9,9.01126317]
[1759323147712,3.7622,4285.4,4285.3,8.34140317]
[1759323147912,3.7622,4285.4,4285.3,8.60648704]
[1759323148113,3.7622,4285.4,4285.3,0.28013255]
[1759323149018,3.9765,4285.4,4285.3,0.28198618]
[1759323149817,3.5379,4285.4,4285.3,0.28198618]
[1759323150512,3.9765,4285.4,4285.3,0.03198618]
[1759323150712,3.7622,4285.4,4285.3,0.28198618]
[1759323150920,3.5379,4285.4,4285.3,0.28198618]
[1759323151119,3.5379,4285.4,4285.3,0.03198618]
[1759323151120,3.7622,4285.4,4285.3,0.03198618]
[1759323151315,3.9765,4285.4,4285.3,0.28198618]
[1759323152514,4.23775073,4285.4,4285.3,0.28198618]
[1759323152710,4.45205073,4285.4,4285.3,0.03198618]
[1759323152910,4.45205073,4285.4,4285.3,0.28198618]
[1759323153515,4.01345073,4285.4,4285.3,0.28198618]
[1759323153818,3.2078,4285.4,4285.3,0.28198618]
[1759323154017,3.2078,4285.4,4285.3,41.08198618]
[1759323154413,0.54536,4286.0,4285.3,41.08198618]
[1759323154414,2.8328298,4287.5,4285.8,0.223]
[1759323154620,0.2243,4286.0,4285.9,1.0146]
[1759323154822,0.2243,4286.0,4285.9,1.06124465]
[1759323155122,0.5642,4286.0,4285.9,1.6468569]
[1759323155513,0.56692599,4286.0,4285.9,1.6468569]
[1759323155722,0.22702599,4286.0,4285.9,1.9842569]
[1759323156621,0.55712599,4286.0,4285.9,1.9842569]
[1759323156918,0.55712599,4286.0,4285.9,1.99891537]
[1759323157317,0.77142599,4286.0,4285.9,1.99891537]
[1759323157716,0.77142599,4286.0,4285.9,1.74891537]
[1759323157919,0.77142599,4286.0,4285.9,1.99891537]
[1759323158621,0.89702599,4286.0,4285.9,1.41357766]
[1759323158825,0.89702599,4286.0,4285.9,1.23537766]
[1759323159818,0.89702599,4286.0,4285.9,1.45177766]
[1759323162014,0.22702599,4286.0,4285.9,1.99997766]
[1759323162227,0.77142599,4286.0,4285.9,1.99997766]
[1759323162415,0.89702599,4286.0,4285.9,1.75097766]
[1759323162624,0.89702599,4286.0,4285.9,1.99997766]
[1759323163020,0.89702599,4286.0,4285.9,2.41974766]
[1759323163221,0.77142599,4286.0,4285.9,2.41974766]
[1759323163524,0.22702599,4286.0,4285.9,2.41974766]
[1759323163726,0.55712599,4286.0,4285.9,2.41974766]
[1759323164827,0.97688599,4286.0,4285.9,1.99997766]
[1759323165224,0.97688599,4286.0,4285.9,2.01574609]
[1759323165426,0.97688599,4286.0,4285.9,2.43551609]
[1759323165827,0.97688599,4286.0,4285.9,2.01574609]
[1759323166026,0.42248599,4286.0,4285.9,2.43551609]
[1759323166331,0.42248599,4286.0,4285.9,2.45128452]
[1759323168228,1.31678599,4286.0,4285.9,2.03151452]
[1759323168432,1.31678599,4286.0,4285.9,1.69311452]
[1759323168831,1.31678599,4286.0,4285.9,1.48231452]
[1759323169024,1.19118599,4286.0,4285.9,1.78251452]
[1759323169232,1.19118599,4286.0,4285.9,2.03051452]
[1759323170034,1.19118599,4286.0,4285.9,1.78251452]
[1759323170236,1.19118599,4286.0,4285.9,2.03051452]
[1759323170634,0.75258599,4286.0,4285.9,2.03051452]
[1759323171031,0.97688599,4286.0,4285.9,2.03051452]
[1759323172336,0.97688599,4286.0,4285.9,2.46426317]
[1759323173240,0.97688599,4286.0,4285.9,2.35538225]
[1759323173439,0.97688599,4286.0,4285.9,2.47824182]
[1759323173637,1.19118599,4286.0,4285.9,2.47824182]
[1759323173832,0.00272599,4286.0,4285.9,1.81047182]
[1759323174035,1.08138599,4286.0,4285.9,3.06823076]
[1759323174338,1.08138599,4286.0,4285.9,3.31623076]
[1759323174536,1.08138599,4286.0,4285.9,3.06823076]
[1759323174741,1.08138599,4286.0,4285.9,1.47307182]
[1759323174742,1.48908599,4286.0,4285.9,1.47307182]
[1759323174934,1.48908599,4286.0,4285.9,2.10697182]
[1759323175134,6.48908599,4286.0,4285.9,1.04587182]
[1759323175334,6.48908599,4286.0,4285.9,1.2969007]
[1759323175542,6.48908599,4286.0,4285.9,1.5484007]
[1759323175735,6.48908599,4286.0,4285.9,1.3014007]
[1759323175934,6.48908599,4286.0,4285.9,1.8181007]
[1759323176231,6.48908599,4286.0,4285.9,2.3767707]
[1759323176434,6.48908599,4286.0,4285.9,3.46175964]
[1759323176634,6.48908599,4286.0,4285.9,2.6237707]
[1759323177231,6.48908599,4286.0,4285.9,3.46175964]
[1759323177942,6.48908599,4286.0,4285.9,1.8181007]
[1759323178442,6.48908599,4286.0,4285.9,3.46175964]
[1759323178642,6.48908599,4286.0,4285.9,3.04198964]
[1759323178838,6.48908599,4286.0,4285.9,2.2040007]
[1759323179231,6.48908599,4286.0,4285.9,3.04198964]
[1759323180043,6.48908599,4286.0,4285.9,2.79498964]
[1759323180245,6.48908599,4286.0,4285.9,3.46175964]
[1759323180436,6.33338599,4286.0,4285.9,3.46175964]
[1759323181039,6.33338599,4286.0,4285.9,3.04198964]
[1759323181244,6.33338599,4286.0,4285.9,2.79498964]
[1759323181444,6.33338599,4286.0,4285.9,3.04198964]
[1759323181646,6.33338599,4286.0,4285.9,2.79498964]
[1759323181945,6.48908599,4286.0,4285.9,2.14774727]
[1759323182348,6.48908599,4286.0,4285.9,1.30975833]
[1759323182538,6.48908599,4286.0,4285.9,1.56125833]
[1759323182739,6.48908599,4286.0,4285.9,2.63662833]
[1759323183746,6.06932599,4286.0,4285.9,2.65241673]
[1759323183947,6.33338599,4286.0,4285.9,2.65241673]
[1759323184345,6.33338599,4286.0,4285.9,2.23264673]
[1759323184542,6.33338599,4286.0,4285.9,2.40541673]
[1759323184735,6.33338599,4286.0,4285.9,2.65475688]
[1759323184934,6.48908599,4286.0,4285.9,2.40875688]
[1759323185242,6.48908599,4286.0,4285.9,1.98898688]
[1759323185444,6.48908599,4286.0,4285.9,2.23498688]
[1759323186150,6.48908599,4286.0,4285.9,2.65475688]
[1759323186746,6.48908599,4286.0,4285.9,2.23498688]
[1759323186945,6.48908599,4286.0,4285.9,2.65475688]
[1759323187151,6.48908599,4286.0,4285.9,2.40875688]
[1759323187541,6.48908599,4286.0,4285.9,1.98898688]
[1759323187742,6.48908599,4286.0,4285.9,1.32788688]
[1759323187945,6.48908599,4286.0,4285.9,1.96528688]
[1759323188137,6.48908599,4286.0,4285.9,1.71928688]
[1759323188344,6.48908599,4286.0,4285.9,2.23498688]
[1759323189740,6.48908599,4286.0,4285.9,1.98898688]
[1759323190046,6.48908599,4286.0,4285.9,1.57938688]
[1759323190647,6.48908599,4286.0,4285.9,1.98035821]
[1759323191050,6.48908599,4286.0,4285.9,2.40012821]
[1759323191247,6.48908599,4286.0,4285.9,2.25005821]
[1759323191443,6.48908599,4286.0,4285.9,2.66982821]
[1759323191649,6.33338599,4286.0,4285.9,2.68315831]
[1759323191848,6.48908599,4286.0,4285.9,0.18727606]
[1759323192045,6.48908599,4286.0,4285.9,1.2730549]
[1759323196447,6.48908599,4286.0,4285.9,1.99368831]
[1759323196845,6.48908599,4286.0,4285.9,1.60778831]
[1759323197751,6.48908599,4286.0,4285.9,1.36178831]
[1759323197950,6.48908599,4286.0,4285.9,1.60678831]
[1759323198451,6.48908599,4286.0,4285.9,1.99268831]
[1759323200759,6.33338599,4286.0,4285.9,2.26238831]
[1759323201257,1.33338599,4286.0,4285.9,2.68215831]
[1759323201957,1.33338599,4286.0,4285.9,2.26238831]
[1759323202254,1.33338599,4286.0,4285.9,2.68215831]
[1759323203959,0.66162599,4286.0,4285.9,2.68215831]
[1759323204162,1.08138599,4286.0,4285.9,2.68215831]
[1759323204852,0.66162599,4286.0,4285.9,2.68215831]
[1759323207354,0.00272599,4286.0,4285.9,2.68215831]
[1759323209059,0.64482599,4286.0,4285.9,2.68115831]
[1759323209360,0.91212599,4286.0,4285.9,2.68115831]
[1759323210961,0.91212599,4286.0,4285.9,1.75814606]
[1759323211160,0.91212599,4286.0,4285.9,2.68115831]
[1759323213165,0.91212599,4286.0,4285.9,1.51414606]
[1759323213361,1.33188599,4286.0,4285.9,2.68115831]
[1759323213756,1.33188599,4286.0,4285.9,2.43715831]
[1759323214062,1.49168599,4286.0,4285.9,2.68115831]
[1759323214261,1.49168599,4286.0,4285.9,2.43715831]
[1759323214459,1.49168599,4286.0,4285.9,2.68115831]
[1759323215466,1.49168599,4286.0,4285.9,2.43715831]
[1759323215668,1.49168599,4286.0,4285.9,2.68115831]
[1759323216656,1.49168599,4286.0,4285.9,2.68015831]
[1759323218269,1.33188599,4286.0,4285.9,2.68015831]
[1759323220068,1.33188599,4286.0,4285.9,2.43715831]
[1759323220367,1.49168599,4286.0,4285.9,1.53005831]
[1759323220563,1.49168599,4286.0,4285.9,1.77305831]
[1759323220764,1.49168599,4286.0,4285.9,1.11028831]
[1759323220966,1.49168599,4286.0,4285.9,1.97708831]
[1759323221363,1.49168599,4286.0,4285.9,2.65735831]
[1759323221671,1.33188599,4286.0,4285.9,2.65735831]
[1759323222168,1.49168599,4286.0,4285.9,2.65735831]
[1759323222466,1.49168599,4286.0,4285.9,1.49134606]
[1759323222768,1.49168599,4286.0,4285.9,2.65735831]
[1759323224268,1.33188599,4286.0,4285.9,2.65735831]
[1759323225262,1.49168599,4286.0,4285.9,3.07726377]
[1759323225467,1.49168599,4286.0,4285.9,2.71166377]
[1759323225868,1.49168599,4286.0,4285.9,1.87198831]
[1759323226070,1.49168599,4286.0,4285.9,2.23758831]
[1759323226268,1.49168599,4286.0,4285.9,1.99458831]
[1759323226468,0.3996,4285.4,4285.3,0.5187]
[1759323226767,1.06192,4285.4,4285.3,1.1273]
[1759323226972,1.32922,4285.4,4285.3,1.1273]
[1759323228176,0.9094,4285.4,4285.3,1.1273]
[1759323228573,1.32922,4285.4,4285.3,1.1273]